[Event "Live Chess"]
[Site "Chess.com"]
[Date "2023.05.21"]
[Round "-"]
[White "Berdgross"]
[Black "Duke_of_Bebington"]
[Result "0-1"]
[WhiteElo "667"]
[BlackElo "1577"]
[TimeControl "300"]
[EndTime "4:46:00 PDT"]
[Termination "Duke_of_Bebington won by resignation"]

1. d4 {[%clk 0:04:58.8]} 1... d5 {[%clk 0:04:58.4]} 2. e3 {[%clk 0:04:57.7]}
2... Bf5 {[%clk 0:04:55.9]} 3. Bd3 {[%clk 0:04:53.6]} 3... Bxd3 {[%clk
0:04:53.9]} 4. Qxd3 {[%clk 0:04:52]} 4... Nf6 {[%clk 0:04:52.4]} 5. Nf3 {[%clk
0:04:51]} 5... e6 {[%clk 0:04:51.5]} 6. Ne5 {[%clk 0:04:49.8]} 6... c5 {[%clk
0:04:45.9]} 7. dxc5 {[%clk 0:04:46]} 7... Bxc5 {[%clk 0:04:44]} 8. Nc3 {[%clk
0:04:43.5]} 8... Nc6 {[%clk 0:04:40.2]} 9. Nxc6 {[%clk 0:04:41.6]} 9... bxc6
{[%clk 0:04:39]} 10. O-O {[%clk 0:04:38.7]} 10... O-O {[%clk 0:04:36.8]} 11. b4
{[%clk 0:04:36.1]} 11... Bxb4 {[%clk 0:04:33.7]} 12. Bb2 {[%clk 0:04:34.2]}
12... c5 {[%clk 0:04:26.6]} 13. Ne2 {[%clk 0:04:27.5]} 13... Ne4 {[%clk
0:04:18.1]} 14. f3 {[%clk 0:04:15.3]} 14... Nd6 {[%clk 0:04:11.6]} 15. e4 {[%clk
0:04:08.9]} 15... Nc4 {[%clk 0:04:08.1]} 16. Rab1 {[%clk 0:03:56.4]} 16... dxe4
{[%clk 0:04:01.8]} 17. Qxe4 {[%clk 0:03:51.3]} 17... Nd2 {[%clk 0:03:59.8]} 18.
Qg4 {[%clk 0:03:42.9]} 18... g6 {[%clk 0:03:47.8]} 19. Rbd1 {[%clk 0:03:34.4]}
19... Qa5 {[%clk 0:03:39.7]} 20. Rf2 {[%clk 0:03:14.5]} 20... Rad8 {[%clk
0:03:32.8]} 21. Nf4 {[%clk 0:02:59.1]} 21... Bc3 {[%clk 0:03:21.4]} 22. Bxc3
{[%clk 0:02:52.6]} 22... Qxc3 {[%clk 0:03:21.3]} 23. Ne2 {[%clk 0:02:27.6]}
23... Nxf3+ {[%clk 0:03:15.1]} 24. Qxf3 {[%clk 0:02:01.5]} 24... Rxd1+ {[%clk
0:03:12.2]} 25. Rf1 {[%clk 0:01:54.5]} 25... Qxf3 {[%clk 0:03:10.6]} 26. gxf3
{[%clk 0:01:46.9]} 26... Rxf1+ {[%clk 0:03:09]} 27. Kxf1 {[%clk 0:01:44.4]}
27... Rd8 {[%clk 0:03:08.6]} 28. Nf4 {[%clk 0:01:40.9]} 28... Rd2 {[%clk
0:03:04.6]} 29. c4 {[%clk 0:01:37.9]} 29... Rxh2 {[%clk 0:02:59.7]} 30. Nd3
{[%clk 0:01:35.6]} 30... Rxa2 {[%clk 0:02:57.6]} 31. Nxc5 {[%clk 0:01:32.8]}
31... Rc2 {[%clk 0:02:56.2]} 32. Nd7 {[%clk 0:01:27.8]} 32... Rxc4 {[%clk
0:02:53.7]} 33. Nf6+ {[%clk 0:01:26.5]} 33... Kg7 {[%clk 0:02:52.1]} 34. Ne8+
{[%clk 0:01:24.1]} 34... Kf8 {[%clk 0:02:48.3]} 35. Nf6 {[%clk 0:01:22.5]} 35...
Rh4 {[%clk 0:02:41.4]} 36. Nd7+ {[%clk 0:01:16.2]} 36... Ke7 {[%clk 0:02:39.5]}
37. Ne5 {[%clk 0:01:14.7]} 37... Kf6 {[%clk 0:02:29]} 38. Ng4+ {[%clk
0:01:12.4]} 38... Rxg4 {[%clk 0:02:27.5]} 39. fxg4 {[%clk 0:01:10.9]} 39... a5
{[%clk 0:02:26.6]} 40. Ke2 {[%clk 0:01:09.2]} 40... h5 {[%clk 0:02:24.4]} 41.
gxh5 {[%clk 0:01:06.1]} 41... gxh5 {[%clk 0:02:24.3]} 42. Kd3 {[%clk 0:01:03.6]}
42... h4 {[%clk 0:02:23.4]} 0-1

[Event "Live Chess"]
[Site "Chess.com"]
[Date "2023.05.21"]
[Round "-"]
[White "GEMdzq"]
[Black "JohanKjeldahl"]
[Result "1-0"]
[WhiteElo "2289"]
[BlackElo "1879"]
[TimeControl "300"]
[EndTime "4:46:07 PDT"]
[Termination "GEMdzq won by resignation"]

1. e4 {[%clk 0:04:58.7]} 1... c5 {[%clk 0:04:57.7]} 2. d4 {[%clk 0:04:57.5]}
2... cxd4 {[%clk 0:04:56]} 3. c3 {[%clk 0:04:57.2]} 3... dxc3 {[%clk 0:04:54.4]}
4. Nxc3 {[%clk 0:04:57.1]} 4... e6 {[%clk 0:04:53.4]} 5. Bc4 {[%clk 0:04:56.7]}
5... Nc6 {[%clk 0:04:52]} 6. Nf3 {[%clk 0:04:56.3]} 6... a6 {[%clk 0:04:49.4]}
7. O-O {[%clk 0:04:55.6]} 7... b5 {[%clk 0:04:44.2]} 8. Bb3 {[%clk 0:04:53.7]}
8... Bb7 {[%clk 0:04:43.2]} 9. Re1 {[%clk 0:04:46.8]} 9... Be7 {[%clk
0:04:37.3]} 10. Bf4 {[%clk 0:04:34.4]} 10... d6 {[%clk 0:04:34.7]} 11. Qe2
{[%clk 0:04:28.4]} 11... Nf6 {[%clk 0:04:31.4]} 12. Red1 {[%clk 0:04:18.2]}
12... Qc7 {[%clk 0:04:29.3]} 13. Rac1 {[%clk 0:04:16.4]} 13... Rd8 {[%clk
0:04:22.4]} 14. Nd5 {[%clk 0:04:11.9]} 14... exd5 {[%clk 0:04:19.5]} 15. exd5
{[%clk 0:04:11.8]} 15... O-O {[%clk 0:04:01.8]} 16. dxc6 {[%clk 0:04:10.7]}
16... Bc8 {[%clk 0:03:57]} 17. Ng5 {[%clk 0:03:50.7]} 17... h6 {[%clk
0:03:50.1]} 18. Ne4 {[%clk 0:03:41.1]} 18... Nxe4 {[%clk 0:03:42.5]} 19. Qxe4
{[%clk 0:03:41]} 19... Bf6 {[%clk 0:03:36.4]} 20. Bxh6 {[%clk 0:03:31.9]} 20...
gxh6 {[%clk 0:03:31.6]} 21. Qg6+ {[%clk 0:03:27.9]} 21... Bg7 {[%clk 0:03:27.8]}
22. Rc3 {[%clk 0:03:24.6]} 22... Kh8 {[%clk 0:03:14.8]} 23. Qh5 {[%clk
0:03:19.4]} 23... Bxc3 {[%clk 0:03:10.4]} 24. Qxh6+ {[%clk 0:03:14.6]} 24... Kg8
{[%clk 0:03:08.6]} 25. bxc3 {[%clk 0:03:08.5]} 25... d5 {[%clk 0:02:55.1]} 26.
Qg5+ {[%clk 0:03:00.1]} 26... Kh8 {[%clk 0:02:51.1]} 27. Rd4 {[%clk 0:02:49.9]}
1-0

[Event "Live Chess"]
[Site "Chess.com"]
[Date "2023.05.21"]
[Round "-"]
[White "ameetghasi100"]
[Black "chessfiction"]
[Result "1-0"]
[WhiteElo "2597"]
[BlackElo "2308"]
[TimeControl "300"]
[EndTime "4:46:22 PDT"]
[Termination "ameetghasi100 won by checkmate"]

1. d4 {[%clk 0:04:57.9]} 1... d6 {[%clk 0:04:59.2]} 2. c4 {[%clk 0:04:56]} 2...
Nf6 {[%clk 0:04:59.1]} 3. Nc3 {[%clk 0:04:55.2]} 3... g6 {[%clk 0:04:58.5]} 4.
Nf3 {[%clk 0:04:54.1]} 4... Bg7 {[%clk 0:04:58.4]} 5. e4 {[%clk 0:04:53]} 5...
O-O {[%clk 0:04:58.3]} 6. Be2 {[%clk 0:04:52.2]} 6... Nbd7 {[%clk 0:04:58.2]} 7.
Be3 {[%clk 0:04:50]} 7... e5 {[%clk 0:04:58.1]} 8. O-O {[%clk 0:04:48.2]} 8...
a6 {[%clk 0:04:54.3]} 9. Rc1 {[%clk 0:04:44.9]} 9... h6 {[%clk 0:04:53.6]} 10.
h3 {[%clk 0:04:42.1]} 10... Nh5 {[%clk 0:04:46.2]} 11. Qd2 {[%clk 0:04:39.5]}
11... Kh7 {[%clk 0:04:42.3]} 12. Rfd1 {[%clk 0:04:38.4]} 12... c6 {[%clk
0:04:33.9]} 13. b4 {[%clk 0:04:35.7]} 13... Qf6 {[%clk 0:04:22.8]} 14. c5 {[%clk
0:04:13.1]} 14... Re8 {[%clk 0:03:47.1]} 15. cxd6 {[%clk 0:04:01.3]} 15... Qxd6
{[%clk 0:03:37.9]} 16. dxe5 {[%clk 0:03:54.1]} 16... Qxd2 {[%clk 0:03:35.1]} 17.
Rxd2 {[%clk 0:03:33.5]} 17... Nxe5 {[%clk 0:03:33]} 18. Nxe5 {[%clk 0:03:32.5]}
18... Bxe5 {[%clk 0:03:32.8]} 19. Na4 {[%clk 0:03:31]} 19... Be6 {[%clk
0:03:05.3]} 20. Nc5 {[%clk 0:03:24.2]} 20... Nf4 {[%clk 0:02:53.7]} 21. Bf1
{[%clk 0:03:17.6]} 21... a5 {[%clk 0:02:45.5]} 22. bxa5 {[%clk 0:02:42.1]} 22...
Rxa5 {[%clk 0:02:45.4]} 23. Nxb7 {[%clk 0:02:41.1]} 23... Rxa2 {[%clk
0:02:37.9]} 24. Rxa2 {[%clk 0:02:40.1]} 24... Bxa2 {[%clk 0:02:37.7]} 25. Rxc6
{[%clk 0:02:38.7]} 25... Rb8 {[%clk 0:02:31.7]} 26. Rb6 {[%clk 0:02:32.8]} 26...
Be6 {[%clk 0:02:21.3]} 27. Na5 {[%clk 0:02:31.7]} 27... Ra8 {[%clk 0:02:16.6]}
28. Nc6 {[%clk 0:02:30.3]} 28... Ra1 {[%clk 0:02:07.5]} 29. Nxe5 {[%clk
0:02:22]} 29... Ne2+ {[%clk 0:02:06.9]} 30. Kh2 {[%clk 0:02:20.7]} 30... Rxf1
{[%clk 0:02:06.7]} 31. Rb7 {[%clk 0:02:10.9]} 31... Nc3 {[%clk 0:01:51.6]} 32.
Bd4 {[%clk 0:02:01.1]} 32... Nxe4 {[%clk 0:01:38.9]} 33. Nxf7 {[%clk 0:01:59.3]}
33... Bd5 {[%clk 0:01:28.5]} 34. Ng5+ {[%clk 0:01:51.1]} 34... Kg8 {[%clk
0:01:26.3]} 35. Rb8# {[%clk 0:01:50.5]} 1-0

[Event "Live Chess"]
[Site "Chess.com"]
[Date "2023.05.21"]
[Round "-"]
[White "ChessTWSS"]
[Black "DoYouLikeCurry"]
[Result "1-0"]
[WhiteElo "1611"]
[BlackElo "1432"]
[TimeControl "300"]
[EndTime "4:46:27 PDT"]
[Termination "ChessTWSS won by resignation"]

1. d4 {[%clk 0:04:57.9]} 1... d5 {[%clk 0:04:58.8]} 2. Bf4 {[%clk 0:04:53]} 2...
Nf6 {[%clk 0:04:56.8]} 3. Nf3 {[%clk 0:04:48.9]} 3... c5 {[%clk 0:04:55.7]} 4.
c3 {[%clk 0:04:45.5]} 4... Nc6 {[%clk 0:04:52.5]} 5. e3 {[%clk 0:04:41.8]} 5...
Bg4 {[%clk 0:04:50.5]} 6. h3 {[%clk 0:04:34.2]} 6... Bxf3 {[%clk 0:04:48.8]} 7.
Qxf3 {[%clk 0:04:29.9]} 7... e6 {[%clk 0:04:48.4]} 8. Nd2 {[%clk 0:04:23.4]}
8... Qb6 {[%clk 0:04:47.5]} 9. Rb1 {[%clk 0:04:18.5]} 9... cxd4 {[%clk 0:04:46]}
10. c4 {[%clk 0:04:12]} 10... dxe3 {[%clk 0:04:39]} 11. Bxe3 {[%clk 0:04:06.9]}
11... Qc7 {[%clk 0:04:29.5]} 12. cxd5 {[%clk 0:04:00.1]} 12... Nxd5 {[%clk
0:04:27.9]} 13. Bb5 {[%clk 0:03:53.7]} 13... Bd6 {[%clk 0:04:21.5]} 14. Bxc6+
{[%clk 0:03:46.6]} 14... Qxc6 {[%clk 0:04:20]} 15. O-O {[%clk 0:03:39.4]} 15...
O-O {[%clk 0:04:18.2]} 16. Rfc1 {[%clk 0:03:32.5]} 16... Qd7 {[%clk 0:04:12.8]}
17. Ne4 {[%clk 0:03:26.5]} 17... Bc7 {[%clk 0:04:10.1]} 18. Bc5 {[%clk
0:03:19.7]} 18... Rfc8 {[%clk 0:04:04.5]} 19. Bd4 {[%clk 0:03:09.5]} 19... f5
{[%clk 0:03:56.7]} 20. Nc5 {[%clk 0:03:01]} 20... Qd6 {[%clk 0:03:55.3]} 21. g3
{[%clk 0:02:47.3]} 21... f4 {[%clk 0:03:39.4]} 22. Qg4 {[%clk 0:02:39.5]} 22...
e5 {[%clk 0:03:25.1]} 23. Nxb7 {[%clk 0:02:29.5]} 23... fxg3 {[%clk 0:03:22.4]}
24. Nxd6 {[%clk 0:02:24.1]} 1-0

[Event "Live Chess"]
[Site "Chess.com"]
[Date "2023.05.21"]
[Round "-"]
[White "LL220284LL"]
[Black "JoeyCage"]
[Result "0-1"]
[WhiteElo "2326"]
[BlackElo "2293"]
[TimeControl "300"]
[EndTime "4:46:47 PDT"]
[Termination "JoeyCage won by resignation"]

1. d4 {[%clk 0:04:57.7]} 1... g6 {[%clk 0:04:56.1]} 2. e4 {[%clk 0:04:56.1]}
2... Bg7 {[%clk 0:04:55.1]} 3. Nc3 {[%clk 0:04:54.3]} 3... d6 {[%clk 0:04:54.1]}
4. Be3 {[%clk 0:04:53.1]} 4... a6 {[%clk 0:04:53.2]} 5. Qd2 {[%clk 0:04:52.3]}
5... b5 {[%clk 0:04:51.9]} 6. f3 {[%clk 0:04:50]} 6... Bb7 {[%clk 0:04:50.7]} 7.
h4 {[%clk 0:04:45.6]} 7... h5 {[%clk 0:04:49.1]} 8. Nge2 {[%clk 0:04:43.3]} 8...
Nd7 {[%clk 0:04:48]} 9. g4 {[%clk 0:04:41.8]} 9... hxg4 {[%clk 0:04:45.1]} 10.
fxg4 {[%clk 0:04:41.1]} 10... Ngf6 {[%clk 0:04:43.8]} 11. Bg2 {[%clk 0:04:31.5]}
11... Nxg4 {[%clk 0:04:41.5]} 12. Bg1 {[%clk 0:04:30.3]} 12... Bh6 {[%clk
0:04:39.3]} 13. Qd3 {[%clk 0:04:27.5]} 13... c5 {[%clk 0:04:30.5]} 14. Qg3
{[%clk 0:04:22.3]} 14... Ngf6 {[%clk 0:04:12.5]} 15. Be3 {[%clk 0:04:05.5]}
15... Nh5 {[%clk 0:04:06.8]} 16. Qf2 {[%clk 0:04:02.6]} 16... Bxe3 {[%clk
0:04:04.1]} 17. Qxe3 {[%clk 0:04:02.5]} 17... cxd4 {[%clk 0:04:01.9]} 18. Qxd4
{[%clk 0:04:00.6]} 18... Ne5 {[%clk 0:04:00.6]} 19. O-O-O {[%clk 0:03:58.2]}
19... Rc8 {[%clk 0:03:57.8]} 20. Kb1 {[%clk 0:03:55]} 20... Qc7 {[%clk
0:03:55.9]} 21. Bh3 {[%clk 0:03:49.1]} 21... Rd8 {[%clk 0:03:50.2]} 22. a4
{[%clk 0:03:42.1]} 22... bxa4 {[%clk 0:03:46.1]} 23. Qxa4+ {[%clk 0:03:37.3]}
23... Qc6 {[%clk 0:03:40.9]} 24. Qb3 {[%clk 0:03:29.5]} 24... Qc7 {[%clk
0:03:20.9]} 25. Nd4 {[%clk 0:03:22.3]} 25... O-O {[%clk 0:03:15.3]} 26. Rhg1
{[%clk 0:03:15.2]} 26... Rb8 {[%clk 0:03:09]} 27. Nd5 {[%clk 0:03:08.4]} 27...
Bxd5 {[%clk 0:03:07]} 28. Qxd5 {[%clk 0:03:08.3]} 28... Qb7 {[%clk 0:02:56.3]}
29. Qxb7 {[%clk 0:03:03.3]} 29... Rxb7 {[%clk 0:02:54.9]} 30. Rg5 {[%clk
0:02:58.5]} 30... Kh7 {[%clk 0:02:51.8]} 31. Rf1 {[%clk 0:02:43.4]} 31... Nf6
{[%clk 0:02:49.5]} 32. Rf4 {[%clk 0:02:32.7]} 32... Nh5 {[%clk 0:02:36.4]} 33.
Rf2 {[%clk 0:02:27.4]} 33... Rb4 {[%clk 0:02:22.2]} 34. c3 {[%clk 0:02:24.9]}
34... Rb7 {[%clk 0:02:20.9]} 35. Kc1 {[%clk 0:02:19.3]} 35... Nd3+ {[%clk
0:02:18.3]} 0-1

[Event "Live Chess"]
[Site "Chess.com"]
[Date "2023.05.21"]
[Round "-"]
[White "SirEntrails"]
[Black "YrrriKharkiv"]
[Result "0-1"]
[WhiteElo "542"]
[BlackElo "2067"]
[TimeControl "300"]
[EndTime "4:47:05 PDT"]
[Termination "YrrriKharkiv won by checkmate"]

1. e4 {[%clk 0:04:57.9]} 1... e6 {[%clk 0:04:58.5]} 2. Nf3 {[%clk 0:04:57]} 2...
d5 {[%clk 0:04:58]} 3. exd5 {[%clk 0:04:52.2]} 3... exd5 {[%clk 0:04:57.5]} 4.
Nc3 {[%clk 0:04:50.5]} 4... c6 {[%clk 0:04:56.5]} 5. Be2 {[%clk 0:04:42.5]} 5...
Nd7 {[%clk 0:04:17.6]} 6. d3 {[%clk 0:04:39.6]} 6... Bd6 {[%clk 0:04:15.2]} 7.
Bd2 {[%clk 0:04:32.6]} 7... Ne7 {[%clk 0:04:10.6]} 8. d4 {[%clk 0:04:31.1]} 8...
O-O {[%clk 0:04:08.9]} 9. O-O {[%clk 0:04:28.4]} 9... Re8 {[%clk 0:04:04.6]} 10.
Bd3 {[%clk 0:04:26.4]} 10... Nf8 {[%clk 0:04:02.3]} 11. Bg5 {[%clk 0:04:22]}
11... f6 {[%clk 0:04:01.1]} 12. Bh6 {[%clk 0:04:10.7]} 12... gxh6 {[%clk
0:03:53.5]} 13. Nh4 {[%clk 0:04:05.9]} 13... Neg6 {[%clk 0:03:42]} 14. Nf5
{[%clk 0:03:57.4]} 14... Bxf5 {[%clk 0:03:40.1]} 15. Bxf5 {[%clk 0:03:54.6]}
15... Qc7 {[%clk 0:03:38.6]} 16. Qg4 {[%clk 0:03:44.7]} 16... Bxh2+ {[%clk
0:03:30.8]} 17. Kh1 {[%clk 0:03:40.1]} 17... Bd6 {[%clk 0:03:30.5]} 18. Bxg6
{[%clk 0:03:27.1]} 18... hxg6 {[%clk 0:03:23.6]} 19. Qh4 {[%clk 0:03:24.5]}
19... Kg7 {[%clk 0:03:21.7]} 20. Ne2 {[%clk 0:03:21.1]} 20... g5 {[%clk
0:03:18.6]} 21. Qg4 {[%clk 0:03:13.4]} 21... f5 {[%clk 0:03:10.1]} 22. Qxf5
{[%clk 0:03:02.2]} 22... Rxe2 {[%clk 0:03:08.2]} 23. Rae1 {[%clk 0:02:46.5]}
23... Rae8 {[%clk 0:03:05.5]} 24. Qf3 {[%clk 0:02:37.8]} 24... Rxe1 {[%clk
0:03:03.9]} 25. Rxe1 {[%clk 0:02:20]} 25... Rxe1# {[%clk 0:02:59]} 0-1

[Event "Live Chess"]
[Site "Chess.com"]
[Date "2023.05.21"]
[Round "-"]
[White "mach247"]
[Black "zdanevych"]
[Result "1-0"]
[WhiteElo "1352"]
[BlackElo "1550"]
[TimeControl "300"]
[EndTime "4:47:11 PDT"]
[Termination "mach247 won by resignation"]

1. e4 {[%clk 0:04:59.5]} 1... c5 {[%clk 0:04:58.7]} 2. Nf3 {[%clk 0:04:58.6]}
2... e6 {[%clk 0:04:58.1]} 3. d4 {[%clk 0:04:57.7]} 3... d5 {[%clk 0:04:57.4]}
4. dxc5 {[%clk 0:04:57.2]} 4... Bxc5 {[%clk 0:04:55.6]} 5. exd5 {[%clk
0:04:55.6]} 5... exd5 {[%clk 0:04:52.3]} 6. Bg5 {[%clk 0:04:51.1]} 6... Ne7
{[%clk 0:04:48.1]} 7. Bb5+ {[%clk 0:04:47]} 7... Nbc6 {[%clk 0:04:46.4]} 8. h3
{[%clk 0:04:41.4]} 8... a6 {[%clk 0:04:45.3]} 9. Bxc6+ {[%clk 0:04:38.3]} 9...
bxc6 {[%clk 0:04:45.2]} 10. O-O {[%clk 0:04:37.8]} 10... O-O {[%clk 0:04:40.4]}
11. Re1 {[%clk 0:04:37.2]} 11... Qc7 {[%clk 0:04:34.9]} 12. Nc3 {[%clk
0:03:59.6]} 12... Be6 {[%clk 0:04:18.7]} 13. Nd4 {[%clk 0:03:38.5]} 13... Bd7
{[%clk 0:03:59.3]} 14. Bxe7 {[%clk 0:03:37]} 14... Bxe7 {[%clk 0:03:58]} 15.
Rxe7 {[%clk 0:03:36.5]} 15... Rfe8 {[%clk 0:03:55.3]} 16. Rxe8+ {[%clk
0:03:34.9]} 16... Rxe8 {[%clk 0:03:55.2]} 17. Qd2 {[%clk 0:03:28.1]} 17... Qb6
{[%clk 0:03:46.4]} 18. b3 {[%clk 0:03:06.5]} 18... h6 {[%clk 0:03:37]} 19. Na4
{[%clk 0:03:05.5]} 19... Qa7 {[%clk 0:03:23.8]} 20. Nf3 {[%clk 0:02:45.5]} 20...
Be6 {[%clk 0:03:11.2]} 21. Re1 {[%clk 0:02:30.2]} 21... c5 {[%clk 0:02:59.7]}
22. c4 {[%clk 0:02:20.5]} 22... d4 {[%clk 0:02:54.2]} 23. Nb2 {[%clk 0:02:19.7]}
23... Rb8 {[%clk 0:02:37.8]} 24. Nd3 {[%clk 0:02:17.5]} 24... Qd7 {[%clk
0:02:34.7]} 25. Nxc5 {[%clk 0:02:07.8]} 1-0

[Event "Live Chess"]
[Site "Chess.com"]
[Date "2023.05.21"]
[Round "-"]
[White "jbooth"]
[Black "YF22Raptor"]
[Result "1-0"]
[WhiteElo "1717"]
[BlackElo "1020"]
[TimeControl "300"]
[EndTime "4:47:14 PDT"]
[Termination "jbooth won by checkmate"]

1. e4 {[%clk 0:04:55.9]} 1... c6 {[%clk 0:04:59.2]} 2. d4 {[%clk 0:04:53.2]}
2... d5 {[%clk 0:04:58.8]} 3. Nc3 {[%clk 0:04:51.8]} 3... dxe4 {[%clk
0:04:57.2]} 4. Nxe4 {[%clk 0:04:50.5]} 4... Nf6 {[%clk 0:04:54.8]} 5. Nxf6+
{[%clk 0:04:48.4]} 5... exf6 {[%clk 0:04:54.2]} 6. Nf3 {[%clk 0:04:47.5]} 6...
g6 {[%clk 0:04:53]} 7. h3 {[%clk 0:04:42.3]} 7... Bg7 {[%clk 0:04:51.9]} 8. Bd3
{[%clk 0:04:40.9]} 8... f5 {[%clk 0:04:50.8]} 9. O-O {[%clk 0:04:38.4]} 9...
Bxd4 {[%clk 0:04:46.4]} 10. Re1+ {[%clk 0:04:32.8]} 10... Be6 {[%clk 0:04:43.4]}
11. Ng5 {[%clk 0:04:15.1]} 11... Qe7 {[%clk 0:04:32.8]} 12. Bxf5 {[%clk
0:04:05.3]} 12... Bxf2+ {[%clk 0:04:21.3]} 13. Kxf2 {[%clk 0:04:04]} 13... gxf5
{[%clk 0:04:19.5]} 14. Bf4 {[%clk 0:03:46.9]} 14... h6 {[%clk 0:04:01.4]} 15.
Nxe6 {[%clk 0:03:44.8]} 15... fxe6 {[%clk 0:03:59.9]} 16. Qd4 {[%clk 0:03:36.4]}
16... Rh7 {[%clk 0:03:53.3]} 17. Rxe6 {[%clk 0:03:30.6]} 17... Qxe6 {[%clk
0:03:44.9]} 18. Re1 {[%clk 0:03:29]} 18... Qxe1+ {[%clk 0:03:42.7]} 19. Kxe1
{[%clk 0:03:27.9]} 19... Re7+ {[%clk 0:03:36.5]} 20. Kf2 {[%clk 0:03:26.3]}
20... Nd7 {[%clk 0:03:33.4]} 21. Qh8+ {[%clk 0:03:23.8]} 21... Nf8 {[%clk
0:03:31.1]} 22. Bxh6 {[%clk 0:03:22.5]} 22... Rf7 {[%clk 0:03:28.8]} 23. Qe5+
{[%clk 0:03:18.2]} 23... Re7 {[%clk 0:03:26.5]} 24. Qf6 {[%clk 0:03:12.8]} 24...
Rf7 {[%clk 0:03:22.9]} 25. Qe5+ {[%clk 0:03:06.4]} 25... Kd8 {[%clk 0:03:15.9]}
26. Qd6+ {[%clk 0:02:55.3]} 26... Ke8 {[%clk 0:03:14.4]} 27. h4 {[%clk
0:02:42.8]} 27... Rd8 {[%clk 0:03:11.9]} 28. Qc5 {[%clk 0:02:37.1]} 28... Rdd7
{[%clk 0:02:58.6]} 29. Qxa7 {[%clk 0:02:24.5]} 29... Rh7 {[%clk 0:02:53.5]} 30.
Bg5 {[%clk 0:02:22.1]} 30... Rh5 {[%clk 0:02:49.8]} 31. Qb8+ {[%clk 0:02:18.4]}
31... Kf7 {[%clk 0:02:46.9]} 32. Qe5 {[%clk 0:02:12.7]} 32... Nh7 {[%clk
0:02:35.5]} 33. Qxf5+ {[%clk 0:02:07.8]} 33... Kg8 {[%clk 0:02:34.3]} 34. Kg3
{[%clk 0:01:57.4]} 34... Rg7 {[%clk 0:02:30]} 35. Kg4 {[%clk 0:01:51.8]} 35...
Nxg5 {[%clk 0:02:17.4]} 36. hxg5 {[%clk 0:01:41.6]} 36... Rh2 {[%clk 0:02:11.3]}
37. Kg3 {[%clk 0:01:37.4]} 37... Rh1 {[%clk 0:02:09]} 38. Qc8+ {[%clk
0:01:33.8]} 38... Kh7 {[%clk 0:02:07.3]} 39. Kg4 {[%clk 0:01:29.2]} 39... Rg1
{[%clk 0:02:05.7]} 40. g3 {[%clk 0:01:27.5]} 40... Rg2 {[%clk 0:02:01.9]} 41. a4
{[%clk 0:01:23.2]} 41... Rxc2 {[%clk 0:01:59.8]} 42. Qf5+ {[%clk 0:01:21.7]}
42... Rg6 {[%clk 0:01:56.7]} 43. Qxc2 {[%clk 0:01:20.2]} 43... Kg7 {[%clk
0:01:53.9]} 44. Qxg6+ {[%clk 0:01:18.2]} 44... Kxg6 {[%clk 0:01:51]} 45. Kf4
{[%clk 0:01:17.1]} 45... b6 {[%clk 0:01:47.8]} 46. g4 {[%clk 0:01:14]} 46... c5
{[%clk 0:01:46]} 47. b3 {[%clk 0:01:12.9]} 47... Kf7 {[%clk 0:01:43.8]} 48. Kf5
{[%clk 0:01:11.7]} 48... Kg7 {[%clk 0:01:42.8]} 49. g6 {[%clk 0:01:10.5]} 49...
Kh8 {[%clk 0:01:40.9]} 50. Kf6 {[%clk 0:01:06.2]} 50... Kg8 {[%clk 0:01:39.5]}
51. g5 {[%clk 0:01:04.4]} 51... b5 {[%clk 0:01:35]} 52. axb5 {[%clk 0:01:01.7]}
52... c4 {[%clk 0:01:33.3]} 53. bxc4 {[%clk 0:01:00.4]} 53... Kh8 {[%clk
0:01:32.1]} 54. b6 {[%clk 0:00:58.6]} 54... Kg8 {[%clk 0:01:31.1]} 55. b7 {[%clk
0:00:57.6]} 55... Kh8 {[%clk 0:01:29.1]} 56. b8=R# {[%clk 0:00:54.3]} 1-0

[Event "Live Chess"]
[Site "Chess.com"]
[Date "2023.05.21"]
[Round "-"]
[White "Vitalii18a"]
[Black "MJMykh"]
[Result "0-1"]
[WhiteElo "1136"]
[BlackElo "1141"]
[TimeControl "300"]
[EndTime "4:47:22 PDT"]
[Termination "MJMykh won on time"]

1. e4 {[%clk 0:04:56]} 1... e5 {[%clk 0:04:58.9]} 2. Nf3 {[%clk 0:04:54.8]} 2...
Nc6 {[%clk 0:04:57.9]} 3. Bb5 {[%clk 0:04:51.6]} 3... Bc5 {[%clk 0:04:57.4]} 4.
O-O {[%clk 0:04:49.4]} 4... d6 {[%clk 0:04:56.2]} 5. Re1 {[%clk 0:04:48.3]} 5...
Nf6 {[%clk 0:04:54.9]} 6. d3 {[%clk 0:04:46.7]} 6... h6 {[%clk 0:04:53]} 7. c3
{[%clk 0:04:43.5]} 7... O-O {[%clk 0:04:51.4]} 8. d4 {[%clk 0:04:36.6]} 8...
exd4 {[%clk 0:04:50.2]} 9. cxd4 {[%clk 0:04:35.5]} 9... Bb4 {[%clk 0:04:47.9]}
10. Nc3 {[%clk 0:04:32.1]} 10... Bxc3 {[%clk 0:04:46.9]} 11. bxc3 {[%clk
0:04:30.5]} 11... Bd7 {[%clk 0:04:45.9]} 12. h3 {[%clk 0:04:22.1]} 12... a6
{[%clk 0:04:44.4]} 13. Ba4 {[%clk 0:04:20.4]} 13... Nb8 {[%clk 0:04:38.7]} 14.
Bxd7 {[%clk 0:04:17.1]} 14... Nbxd7 {[%clk 0:04:38]} 15. Nh2 {[%clk 0:04:13.5]}
15... Nb8 {[%clk 0:04:34.9]} 16. Ng4 {[%clk 0:04:08.8]} 16... Nxg4 {[%clk
0:04:32.4]} 17. Qxg4 {[%clk 0:04:07.3]} 17... Nc6 {[%clk 0:04:30.2]} 18. Bxh6
{[%clk 0:04:05.2]} 18... Qf6 {[%clk 0:04:27.2]} 19. Bg5 {[%clk 0:03:53.4]} 19...
Qg6 {[%clk 0:04:22.1]} 20. h4 {[%clk 0:03:31.4]} 20... f6 {[%clk 0:04:19.3]} 21.
h5 {[%clk 0:03:26.9]} 21... Qxg5 {[%clk 0:04:17.2]} 22. Qd7 {[%clk 0:03:06.3]}
22... Rac8 {[%clk 0:04:10.8]} 23. Re3 {[%clk 0:02:59.4]} 23... Qxh5 {[%clk
0:04:03.5]} 24. Rh3 {[%clk 0:02:48.8]} 24... Qf7 {[%clk 0:03:57.8]} 25. Qf5
{[%clk 0:02:43.9]} 25... g6 {[%clk 0:03:52.7]} 26. Qf4 {[%clk 0:02:35.9]} 26...
g5 {[%clk 0:03:42.9]} 27. Qg4 {[%clk 0:02:22.7]} 27... Ne7 {[%clk 0:03:35.6]}
28. f4 {[%clk 0:02:15.7]} 28... Qg6 {[%clk 0:03:25]} 29. Kf2 {[%clk 0:02:03.9]}
29... gxf4 {[%clk 0:03:16.8]} 30. Qxf4 {[%clk 0:01:54.9]} 30... Qf7 {[%clk
0:02:50.7]} 31. Rah1 {[%clk 0:01:46.8]} 31... Qxa2+ {[%clk 0:02:46.9]} 32. Kf3
{[%clk 0:01:37.5]} 32... Kf7 {[%clk 0:02:39.9]} 33. Qg4 {[%clk 0:01:25.3]} 33...
Ke8 {[%clk 0:02:28.7]} 34. Rh8 {[%clk 0:01:17.7]} 34... Rxh8 {[%clk 0:02:24.5]}
35. Rxh8+ {[%clk 0:01:15.3]} 35... Kf7 {[%clk 0:02:23.1]} 36. Rh7+ {[%clk
0:00:48.7]} 36... Ke8 {[%clk 0:02:14.8]} 37. Qh5+ {[%clk 0:00:32.1]} 37... Kd7
{[%clk 0:02:10]} 38. Qg4+ {[%clk 0:00:17.7]} 38... Ke8 {[%clk 0:02:03.7]} 39.
Qg7 {[%clk 0:00:13.2]} 39... Qe6 {[%clk 0:01:55]} 40. Rh8+ {[%clk 0:00:10.5]}
40... Kd7 {[%clk 0:01:53.7]} 41. Rxc8 {[%clk 0:00:05.7]} 41... Kxc8 {[%clk
0:01:49.7]} 42. Qf8+ {[%clk 0:00:03.9]} 42... Kd7 {[%clk 0:01:48.8]} 43. d5
{[%clk 0:00:02.9]} 43... Qe5 {[%clk 0:01:45]} 0-1